[Event "44th Chess Olympiad Women 2022"]
[Site "Chennai"]
[Date "2022.08.06"]
[Round "8.28"]
[White "Steffensen, Elena"]
[Black "Yu, Weiyang"]
[Result "1-0"]
[WhiteElo "2044"]
[BlackElo "1504"]
[Annotator "NA RC"]
[PlyCount "117"]
[EventDate "2022.??.??"]
[TimeControl "60"]

1. e4 {[%emt 0:00:02]} c5 {[%emt 0:00:05]} 2. Nc3 {[%emt 0:00:10]} Nc6 {
[%emt 0:00:04]} 3. g3 {[%emt 0:00:07]} g6 {[%emt 0:00:29]} 4. Bg2 {[%emt 0:00:
00]} Bg7 {[%emt 0:00:09]} 5. d3 {[%emt 0:00:19]} e6 {[%emt 0:00:10]} 6. Be3 {
[%emt 0:00:42]} d6 {[%emt 0:00:53]} 7. Qd2 {[%emt 0:02:22]} a6 {[%emt 0:03:47]}
8. Nge2 {[%emt 0:00:17]} Nge7 {[%emt 0:01:27]} 9. Bh6 {[%emt 0:01:09]} O-O {
[%emt 0:00:29]} 10. Bxg7 {[%emt 0:00:12]} Kxg7 {[%emt 0:00:08]} 11. O-O {
[%emt 0:00:07]} Nd4 {[%emt 0:09:05]} 12. Nd1 {[%emt 0:03:25]} Nxe2+ {[%emt 0:
00:00]} 13. Qxe2 {[%emt 0:00:07]} Bd7 {[%emt 0:02:05]} 14. Ne3 {[%emt 0:03:30]}
Bc6 {[%emt 0:06:02]} 15. f4 {[%emt 0:03:01]} f5 {[%emt 0:08:20]} 16. Rad1 {
[%emt 0:05:41]} Qc7 {[%emt 0:13:39]} 17. c3 {[%emt 0:01:48]} Rad8 {[%emt 0:00:
00]} 18. Nc4 {[%emt 0:05:53]} b5 {[%emt 0:06:54]} 19. Nd2 {[%emt 0:00:30]} h6 {
[%emt 0:06:39]} 20. Rfe1 {[%emt 0:06:57]} Rf7 {[%emt 0:06:17]} 21. Nf3 {
[%emt 0:01:50]} Rdf8 {[%emt 0:07:07]} 22. h4 {[%emt 0:01:19]} Qa7 {[%emt 0:00:
00]} 23. Kh2 {[%emt 0:02:06]} Rh8 {[%emt 0:02:56]} 24. h5 {[%emt 0:01:48]} c4 {
[%emt 0:05:42]} 25. Nd4 {[%emt 0:03:14]} Bd7 {[%emt 0:03:21]} 26. dxc4 {
[%emt 0:01:13]} e5 {[%emt 0:01:58]} 27. hxg6 {[%emt 0:01:35]} Nxg6 {[%emt 0:00:
00]} 28. Nxf5+ {[%emt 0:00:51]} Bxf5 {[%emt 0:00:16]} 29. exf5 {[%emt 0:00:10]}
Rxf5 {[%emt 0:00:18]} 30. Qg4 {[%emt 0:01:18]} Qf7 {[%emt 0:02:17]} 31. Rxd6 {
[%emt 0:02:06]} h5 {[%emt 0:02:14]} 32. Qxg6+ {[%emt 0:00:12]} Qxg6 {[%emt 0:
00:00]} 33. Rxg6+ {[%emt 0:00:03]} Kxg6 {[%emt 0:00:10]} 34. Be4 {[%emt 0:00:
00]} exf4 {[%emt 0:01:32]} 35. gxf4 {[%emt 0:00:14]} Kf6 {[%emt 0:00:40]} 36.
Bxf5 {[%emt 0:00:16]} Kxf5 {[%emt 0:00:03]} 37. cxb5 {[%emt 0:00:41]} axb5 {
[%emt 0:00:22]} 38. Re5+ {[%emt 0:00:28]} Kxf4 {[%emt 0:00:13]} 39. Rxb5 {
[%emt 0:00:05]} Rd8 {[%emt 0:00:47]} 40. a4 {[%emt 0:01:48]} Kf3 {[%emt 0:00:
00]} 41. b4 {[%emt 0:31:06]} Rd2+ {[%emt 0:30:34]} 42. Kh3 {[%emt 0:01:50]} Rd1
{[%emt 0:00:00]} 43. Kh2 {[%emt 0:00:00]} Rd2+ {[%emt 0:00:00]} 44. Kg1 {
[%emt 0:00:00]} Rd1+ {[%emt 0:00:00]} 45. Kh2 {[%emt 0:00:00]} Rd2+ {[%emt 0:
00:00]} 46. Kh3 {[%emt 0:00:00]} Rd1 {[%emt 0:00:00]} 47. Rf5+ {[%emt 0:00:00]}
Ke4 {[%emt 0:00:00]} 48. Rf8 {[%emt 0:00:00]} Rd3+ {[%emt 0:00:00]} 49. Kh4 {
[%emt 0:00:00]} Rxc3 {[%emt 0:00:00]} 50. Kxh5 {[%emt 0:00:00]} Kd5 {[%emt 0:
00:00]} 51. a5 {[%emt 0:00:00]} Ra3 {[%emt 0:02:10]} 52. Rf6 {[%emt 0:00:00]}
Rc3 {[%emt 0:05:12]} 53. Rb6 {[%emt 0:00:00]} Rc7 {[%emt 0:01:20]} 54. a6 {
[%emt 0:00:00]} Ra7 {[%emt 0:00:33]} 55. b5 {[%emt 0:00:00]} Kc5 {[%emt 0:00:
00]} 56. Rb7 {[%emt 0:00:00]} Ra8 {[%emt 0:00:14]} 57. a7 {[%emt 0:00:00]} Kd6
{[%emt 0:01:14]} 58. b6 {[%emt 0:00:00]} Kc6 {[%emt 0:00:31]} 59. Rb8 {[%emt 0:
00:00]} 1-0

[Event "44th Chess Olympiad Women 2022"]
[Site "Chennai"]
[Date "2022.08.06"]
[Round "8.28"]
[White "Thurner, Anya"]
[Black "Fredericia, Louise"]
[Result "1-0"]
[WhiteElo "1619"]
[BlackElo "1990"]
[Annotator "NA RC"]
[PlyCount "109"]
[EventDate "2022.??.??"]
[TimeControl "60"]

1. e4 {[%emt 0:00:03]} c5 {[%emt 0:00:22]} 2. b3 {[%emt 0:00:06]} e6 {[%emt 0:
00:00]} 3. Bb2 {[%emt 0:00:18]} Nc6 {[%emt 0:00:14]} 4. f4 {[%emt 0:00:37]} d5
{[%emt 0:00:16]} 5. exd5 {[%emt 0:01:24]} exd5 {[%emt 0:00:25]} 6. Bb5 {
[%emt 0:00:38]} Nge7 {[%emt 0:06:01]} 7. Nf3 {[%emt 0:03:50]} a6 {[%emt 0:00:
00]} 8. Bxc6+ {[%emt 0:00:17]} Nxc6 {[%emt 0:01:34]} 9. O-O {[%emt 0:01:24]} d4
{[%emt 0:00:26]} 10. c3 {[%emt 0:16:07]} Be7 {[%emt 0:01:39]} 11. Na3 {[%emt 0:
00:00]} O-O {[%emt 0:04:20]} 12. Qe1 {[%emt 0:07:21]} b5 {[%emt 0:08:49]} 13.
cxd4 {[%emt 0:08:26]} Nxd4 {[%emt 0:02:48]} 14. Nxd4 {[%emt 0:00:56]} cxd4 {
[%emt 0:00:13]} 15. Nc2 {[%emt 0:02:28]} Bb7 {[%emt 0:09:15]} 16. Bxd4 {
[%emt 0:07:08]} Rc8 {[%emt 0:08:41]} 17. Qg3 {[%emt 0:07:39]} g6 {[%emt 0:00:
00]} 18. Bc3 {[%emt 0:01:19]} b4 {[%emt 0:01:11]} 19. Nxb4 {[%emt 0:12:12]}
Bxb4 {[%emt 0:01:15]} 20. f5 {[%emt 0:00:48]} Bxc3 {[%emt 0:03:42]} 21. dxc3 {
[%emt 0:00:30]} Qd2 {[%emt 0:03:11]} 22. c4 {[%emt 0:02:41]} Rfe8 {[%emt 0:00:
00]} 23. fxg6 {[%emt 0:03:01]} hxg6 {[%emt 0:00:27]} 24. Rad1 {[%emt 0:04:03]}
Qb4 {[%emt 0:04:39]} 25. Rd7 {[%emt 0:03:25]} Re7 {[%emt 0:05:37]} 26. Rd6 {
[%emt 0:00:57]} Qc5+ {[%emt 0:04:42]} 27. Kh1 {[%emt 0:00:19]} Be4 {[%emt 0:00:
00]} 28. Rfd1 {[%emt 0:00:46]} Rce8 {[%emt 0:02:02]} 29. Rxa6 {[%emt 0:00:32]}
Bb7 {[%emt 0:02:08]} 30. Rf6 {[%emt 0:00:29]} Qh5 {[%emt 0:01:45]} 31. Rdf1 {
[%emt 0:00:27]} Re2 {[%emt 0:00:48]} 32. R6f2 {[%emt 0:00:30]} Qe5 {[%emt 0:00:
00]} 33. Qxe5 {[%emt 0:00:33]} R8xe5 {[%emt 0:00:08]} 34. h3 {[%emt 0:00:22]}
f5 {[%emt 0:00:24]} 35. Kh2 {[%emt 0:00:35]} g5 {[%emt 0:00:52]} 36. Kg1 {
[%emt 0:00:31]} f4 {[%emt 0:01:48]} 37. Rxe2 {[%emt 0:00:23]} Rxe2 {[%emt 0:00:
00]} 38. Rf2 {[%emt 0:00:19]} Re4 {[%emt 0:01:23]} 39. Rd2 {[%emt 0:00:49]} Kf7
{[%emt 0:01:21]} 40. Rd7+ {[%emt 0:00:23]} Re7 {[%emt 0:00:02]} 41. Rxe7+ {
[%emt 0:00:38]} Kxe7 {[%emt 0:30:02]} 42. Kf2 {[%emt 0:30:30]} Kd6 {[%emt 0:00:
00]} 43. g3 {[%emt 0:00:00]} Kc5 {[%emt 0:00:00]} 44. gxf4 {[%emt 0:00:00]}
gxf4 {[%emt 0:00:00]} 45. h4 {[%emt 0:00:00]} Kb4 {[%emt 0:00:00]} 46. h5 {
[%emt 0:00:00]} Be4 {[%emt 0:00:00]} 47. h6 {[%emt 0:00:00]} Kc5 {[%emt 0:00:
00]} 48. a3 {[%emt 0:00:00]} Kd6 {[%emt 0:00:00]} 49. b4 {[%emt 0:00:00]} Ke7 {
[%emt 0:00:00]} 50. c5 {[%emt 0:00:00]} Kf6 {[%emt 0:00:00]} 51. b5 {[%emt 0:
00:00]} Kg6 {[%emt 0:00:00]} 52. c6 {[%emt 0:00:00]} Kxh6 {[%emt 0:00:00]} 53.
c7 {[%emt 0:00:40]} Bb7 {[%emt 0:00:00]} 54. a4 {[%emt 0:00:22]} Kg7 {[%emt 0:
00:00]} 55. a5 {[%emt 0:00:22]} 1-0

[Event "44th Chess Olympiad Women 2022"]
[Site "Chennai"]
[Date "2022.08.06"]
[Round "8.29"]
[White "Almanzar Vasquez, Jeniffer Maria"]
[Black "Vanduyfhuys, Daria"]
[Result "0-1"]
[WhiteElo "1762"]
[BlackElo "2094"]
[Annotator "NA RC"]
[PlyCount "80"]
[EventDate "2022.??.??"]
[TimeControl "60"]

1. e4 {[%emt 0:00:21]} c5 {[%emt 0:00:08]} 2. Nf3 {[%emt 0:00:05]} d6 {[%emt 0:
00:00]} 3. d4 {[%emt 0:00:27]} cxd4 {[%emt 0:00:08]} 4. Nxd4 {[%emt 0:00:04]}
Nf6 {[%emt 0:00:06]} 5. Nc3 {[%emt 0:00:30]} a6 {[%emt 0:00:08]} 6. Be2 {
[%emt 0:04:07]} e5 {[%emt 0:00:12]} 7. Nf3 {[%emt 0:01:50]} Be7 {[%emt 0:00:52]
} 8. h3 {[%emt 0:00:16]} h6 {[%emt 0:01:14]} 9. Be3 {[%emt 0:01:23]} Be6 {
[%emt 0:02:01]} 10. O-O {[%emt 0:04:25]} Nbd7 {[%emt 0:01:12]} 11. Nd2 {
[%emt 0:03:38]} Rc8 {[%emt 0:04:01]} 12. Nb3 {[%emt 0:04:19]} O-O {[%emt 0:00:
00]} 13. Qd2 {[%emt 0:03:09]} b5 {[%emt 0:05:30]} 14. Bd3 {[%emt 0:05:54]} Nc5
{[%emt 0:02:44]} 15. f3 {[%emt 0:05:48]} Qc7 {[%emt 0:10:06]} 16. Qf2 {[%emt 0:
00:00]} Nfd7 {[%emt 0:12:19]} 17. g4 {[%emt 0:05:06]} b4 {[%emt 0:02:14]} 18.
Ne2 {[%emt 0:04:12]} Nxd3 {[%emt 0:00:50]} 19. cxd3 {[%emt 0:00:08]} Qc2 {
[%emt 0:02:03]} 20. Nec1 {[%emt 0:02:44]} d5 {[%emt 0:02:14]} 21. Qxc2 {
[%emt 0:05:12]} Rxc2 {[%emt 0:00:08]} 22. Rf2 {[%emt 0:00:10]} Rfc8 {[%emt 0:
00:00]} 23. Rxc2 {[%emt 0:04:02]} Rxc2 {[%emt 0:00:07]} 24. Rb1 {[%emt 0:00:21]
} d4 {[%emt 0:01:04]} 25. Bf2 {[%emt 0:01:20]} Bg5 {[%emt 0:00:46]} 26. Be1 {
[%emt 0:02:20]} a5 {[%emt 0:01:37]} 27. Nxa5 {[%emt 0:09:12]} Bxc1 {[%emt 0:00:
00]} 28. Bxb4 {[%emt 0:03:06]} Bxa2 {[%emt 0:00:33]} 29. Ra1 {[%emt 0:00:20]}
Be3+ {[%emt 0:00:12]} 30. Kh1 {[%emt 0:00:45]} Rxb2 {[%emt 0:00:12]} 31. Bd6 {
[%emt 0:01:33]} Rb1+ {[%emt 0:01:00]} 32. Rxb1 {[%emt 0:00:07]} Bxb1 {[%emt 0:
00:00]} 33. Nc4 {[%emt 0:00:47]} Bf4 {[%emt 0:03:08]} 34. Nb2 {[%emt 0:06:19]}
f6 {[%emt 0:00:34]} 35. Kg1 {[%emt 0:00:18]} Bc1 {[%emt 0:00:15]} 36. Nd1 {
[%emt 0:00:33]} Bxd3 {[%emt 0:00:17]} 37. Kf2 {[%emt 0:00:16]} Nb6 {[%emt 0:00:
00]} 38. Ke1 {[%emt 0:01:15]} Nc4 {[%emt 0:00:20]} 39. Bb4 {[%emt 0:00:24]} Bc2
{[%emt 0:00:44]} 40. h4 {[%emt 0:01:54]} d3 {[%emt 0:00:19]} 0-1

[Event "44th Chess Olympiad Women 2022"]
[Site "Chennai"]
[Date "2022.08.06"]
[Round "8.29"]
[White "De Rycke, Tyani"]
[Black "Diaz Cesar, Wilsaida Pieranlly"]
[Result "1-0"]
[WhiteElo "1994"]
[BlackElo "1834"]
[Annotator "NA RC"]
[PlyCount "63"]
[EventDate "2022.??.??"]
[TimeControl "60"]

1. e4 {[%emt 0:00:03]} e5 {[%emt 0:00:09]} 2. Nf3 {[%emt 0:00:04]} d6 {[%emt 0:
00:00]} 3. Bc4 {[%emt 0:00:04]} Be7 {[%emt 0:00:07]} 4. O-O {[%emt 0:00:54]}
Nf6 {[%emt 0:00:51]} 5. d4 {[%emt 0:01:38]} exd4 {[%emt 0:00:33]} 6. Nxd4 {
[%emt 0:01:33]} O-O {[%emt 0:00:23]} 7. Nc3 {[%emt 0:00:16]} c6 {[%emt 0:00:35]
} 8. a4 {[%emt 0:00:26]} a5 {[%emt 0:00:56]} 9. h3 {[%emt 0:01:05]} Nxe4 {
[%emt 0:04:32]} 10. Nxe4 {[%emt 0:05:16]} d5 {[%emt 0:00:06]} 11. Bd3 {[%emt 0:
00:00]} dxe4 {[%emt 0:00:05]} 12. Bxe4 {[%emt 0:00:04]} Na6 {[%emt 0:09:51]}
13. c3 {[%emt 0:00:45]} Nc5 {[%emt 0:12:33]} 14. Bc2 {[%emt 0:00:21]} Bf6 {
[%emt 0:01:48]} 15. Qh5 {[%emt 0:00:45]} g6 {[%emt 0:02:10]} 16. Qxc5 {[%emt 0:
00:00]} Bg7 {[%emt 0:00:07]} 17. Bg5 {[%emt 0:01:37]} Qc7 {[%emt 0:00:23]} 18.
Rfe1 {[%emt 0:00:45]} h6 {[%emt 0:01:50]} 19. Be7 {[%emt 0:00:44]} Re8 {
[%emt 0:03:08]} 20. Nb5 {[%emt 0:00:14]} Qf4 {[%emt 0:01:28]} 21. Nd6 {[%emt 0:
00:00]} Be6 {[%emt 0:05:39]} 22. Nxe8 {[%emt 0:00:47]} Rxe8 {[%emt 0:00:07]}
23. Bd6 {[%emt 0:01:22]} Qd2 {[%emt 0:00:19]} 24. Bb3 {[%emt 0:00:20]} Qxb2 {
[%emt 0:02:33]} 25. Bxe6 {[%emt 0:00:09]} Rxe6 {[%emt 0:00:08]} 26. Qa3 {
[%emt 0:02:16]} Rxe1+ {[%emt 0:03:07]} 27. Rxe1 {[%emt 0:00:07]} Qd2 {[%emt 0:
00:00]} 28. Re3 {[%emt 0:00:56]} h5 {[%emt 0:05:22]} 29. Qc5 {[%emt 0:00:21]}
Qd1+ {[%emt 0:00:43]} 30. Kh2 {[%emt 0:00:09]} Qxa4 {[%emt 0:00:10]} 31. Re8+ {
[%emt 0:00:55]} Kh7 {[%emt 0:00:46]} 32. Be5 {[%emt 0:00:09]} 1-0

[Event "44th Chess Olympiad Women 2022"]
[Site "Chennai"]
[Date "2022.08.06"]
[Round "8.29"]
[White "Gonzalez Peguero, Mary Loly"]
[Black "Barbier, Astrid"]
[Result "1/2-1/2"]
[WhiteElo "1666"]
[BlackElo "1879"]
[Annotator "NA RC"]
[PlyCount "72"]
[EventDate "2022.??.??"]
[TimeControl "60"]

1. e4 {[%emt 0:00:04]} c5 {[%emt 0:00:08]} 2. Nf3 {[%emt 0:00:06]} Nc6 {
[%emt 0:00:10]} 3. g3 {[%emt 0:00:13]} g6 {[%emt 0:04:08]} 4. Bg2 {[%emt 0:00:
00]} Bg7 {[%emt 0:00:05]} 5. O-O {[%emt 0:00:09]} e5 {[%emt 0:01:00]} 6. d3 {
[%emt 0:00:32]} Nge7 {[%emt 0:00:25]} 7. Be3 {[%emt 0:02:21]} d6 {[%emt 0:00:
00]} 8. Nc3 {[%emt 0:00:49]} O-O {[%emt 0:01:46]} 9. Nd2 {[%emt 0:02:41]} Be6 {
[%emt 0:06:47]} 10. Nc4 {[%emt 0:07:57]} a6 {[%emt 0:08:18]} 11. a4 {[%emt 0:
00:00]} Nd4 {[%emt 0:07:04]} 12. Bxd4 {[%emt 0:06:29]} exd4 {[%emt 0:07:00]}
13. Nd5 {[%emt 0:04:20]} Rb8 {[%emt 0:08:44]} 14. Nxe7+ {[%emt 0:05:06]} Qxe7 {
[%emt 0:00:10]} 15. Nb6 {[%emt 0:00:09]} Rbe8 {[%emt 0:08:08]} 16. Qd2 {
[%emt 0:03:17]} h5 {[%emt 0:08:45]} 17. f4 {[%emt 0:12:25]} Bh6 {[%emt 0:10:04]
} 18. Rae1 {[%emt 0:02:19]} f6 {[%emt 0:02:00]} 19. h4 {[%emt 0:08:08]} Bf7 {
[%emt 0:01:37]} 20. Bh3 {[%emt 0:02:03]} Be6 {[%emt 0:04:59]} 21. Nd5 {[%emt 0:
00:00]} Qf7 {[%emt 0:01:50]} 22. Bxe6 {[%emt 0:03:49]} Rxe6 {[%emt 0:00:09]}
23. Qg2 {[%emt 0:01:09]} Ree8 {[%emt 0:03:53]} 24. g4 {[%emt 0:06:20]} hxg4 {
[%emt 0:01:43]} 25. Qxg4 {[%emt 0:02:01]} Kh7 {[%emt 0:01:27]} 26. f5 {[%emt 0:
00:00]} Rg8 {[%emt 0:02:40]} 27. Kh2 {[%emt 0:02:52]} g5 {[%emt 0:00:19]} 28.
Rg1 {[%emt 0:03:37]} Rg7 {[%emt 0:02:53]} 29. Qh5 {[%emt 0:01:45]} Rf8 {
[%emt 0:02:37]} 30. Qxf7 {[%emt 0:03:58]} Rfxf7 {[%emt 0:00:09]} 31. Rg4 {
[%emt 0:02:04]} Kg8 {[%emt 0:00:51]} 32. Reg1 {[%emt 0:00:57]} Kf8 {[%emt 0:00:
00]} 33. R1g2 {[%emt 0:00:59]} b5 {[%emt 0:01:39]} 34. axb5 {[%emt 0:01:35]}
axb5 {[%emt 0:00:04]} 35. b3 {[%emt 0:00:26]} Ke8 {[%emt 0:00:46]} 36. Rg1 {
[%emt 0:00:29]} Rf8 {[%emt 0:01:23]} 1/2-1/2

[Event "44th Chess Olympiad Women 2022"]
[Site "Chennai"]
[Date "2022.08.06"]
[Round "8.29"]
[White "Goossens, Hanne"]
[Black "Rosario Almanzar, Raydily"]
[Result "1-0"]
[WhiteElo "2159"]
[BlackElo "1882"]
[Annotator "NA RC"]
[PlyCount "65"]
[EventDate "2022.??.??"]
[TimeControl "60"]

1. e4 {[%emt 0:00:07]} c5 {[%emt 0:00:44]} 2. Nf3 {[%emt 0:00:06]} e6 {[%emt 0:
00:00]} 3. d4 {[%emt 0:00:11]} cxd4 {[%emt 0:00:05]} 4. Nxd4 {[%emt 0:00:04]}
a6 {[%emt 0:00:11]} 5. c4 {[%emt 0:00:11]} Nf6 {[%emt 0:00:33]} 6. Nc3 {
[%emt 0:00:07]} Qc7 {[%emt 0:00:24]} 7. a3 {[%emt 0:00:38]} b6 {[%emt 0:01:14]}
8. Be3 {[%emt 0:02:33]} Bb7 {[%emt 0:00:15]} 9. f3 {[%emt 0:00:36]} Be7 {
[%emt 0:00:50]} 10. Rc1 {[%emt 0:01:00]} d6 {[%emt 0:02:06]} 11. Be2 {[%emt 0:
00:00]} Nbd7 {[%emt 0:00:54]} 12. O-O {[%emt 0:01:27]} O-O {[%emt 0:01:26]} 13.
Qd2 {[%emt 0:02:11]} Rac8 {[%emt 0:02:02]} 14. b4 {[%emt 0:04:00]} Qb8 {
[%emt 0:03:39]} 15. Nb3 {[%emt 0:02:16]} h5 {[%emt 0:05:44]} 16. Rfd1 {[%emt 0:
00:00]} h4 {[%emt 0:04:20]} 17. Bf1 {[%emt 0:08:29]} h3 {[%emt 0:04:27]} 18.
Qd4 {[%emt 0:12:52]} hxg2 {[%emt 0:19:41]} 19. Kxg2 {[%emt 0:03:27]} d5 {
[%emt 0:23:00]} 20. exd5 {[%emt 0:07:12]} exd5 {[%emt 0:00:33]} 21. cxd5 {
[%emt 0:02:57]} Bd6 {[%emt 0:08:13]} 22. Qh4 {[%emt 0:03:05]} Rxc3 {[%emt 0:00:
00]} 23. Rxc3 {[%emt 0:01:36]} Nxd5 {[%emt 0:00:14]} 24. Rcd3 {[%emt 0:01:24]}
Nxe3+ {[%emt 0:01:26]} 25. Rxe3 {[%emt 0:00:15]} Bf4 {[%emt 0:01:43]} 26. Ree1
{[%emt 0:03:08]} g5 {[%emt 0:01:13]} 27. Qh3 {[%emt 0:02:32]} Ne5 {[%emt 0:00:
00]} 28. Nd4 {[%emt 0:22:39]} g4 {[%emt 0:00:39]} 29. Qh5 {[%emt 0:00:10]}
gxf3+ {[%emt 0:00:33]} 30. Kf2 {[%emt 0:01:04]} Bxh2 {[%emt 0:00:42]} 31. Nf5 {
[%emt 0:02:14]} Ng6 {[%emt 0:00:33]} 32. Bc4 {[%emt 0:01:38]} Qf4 {[%emt 0:00:
00]} 33. Qxg6+ {[%emt 0:00:22]} 1-0

[Event "44th Chess Olympiad Women 2022"]
[Site "Chennai"]
[Date "2022.08.06"]
[Round "8.30"]
[White "Kanyamarala, Trisha"]
[Black "Garcia, Angie"]
[Result "0-1"]
[WhiteElo "2270"]
[BlackElo "1894"]
[Annotator "RC"]
[PlyCount "104"]
[EventDate "2022.??.??"]
[TimeControl "60"]

1. d4 {[%emt 0:00:06]} Nf6 {[%emt 0:00:21]} 2. c4 {[%emt 0:00:08]} g6 {[%emt 0:
00:00]} 3. Nc3 {[%emt 0:00:08]} Bg7 {[%emt 0:00:19]} 4. e4 {[%emt 0:00:12]} d6
{[%emt 0:00:07]} 5. Be2 {[%emt 0:00:05]} O-O {[%emt 0:00:11]} 6. h4 {[%emt 0:
00:00]} h5 {[%emt 0:00:30]} 7. Bg5 {[%emt 0:02:47]} Nbd7 {[%emt 0:01:18]} 8.
Qd2 {[%emt 0:06:29]} c5 {[%emt 0:01:21]} 9. d5 {[%emt 0:00:34]} Re8 {[%emt 0:
00:00]} 10. f3 {[%emt 0:03:30]} Ne5 {[%emt 0:01:42]} 11. Nh3 {[%emt 0:02:10]}
Qb6 {[%emt 0:02:57]} 12. Nf2 {[%emt 0:05:12]} Qb4 {[%emt 0:03:34]} 13. Nb5 {
[%emt 0:02:34]} Qxd2+ {[%emt 0:01:15]} 14. Kxd2 {[%emt 0:02:02]} Rd8 {[%emt 0:
00:00]} 15. Rhg1 {[%emt 0:04:11]} Bd7 {[%emt 0:01:09]} 16. Nc3 {[%emt 0:01:49]}
Kh7 {[%emt 0:07:36]} 17. g4 {[%emt 0:04:40]} hxg4 {[%emt 0:01:40]} 18. fxg4 {
[%emt 0:02:35]} a6 {[%emt 0:00:33]} 19. Rg3 {[%emt 0:06:05]} b5 {[%emt 0:05:36]
} 20. b3 {[%emt 0:12:34]} b4 {[%emt 0:04:12]} 21. Ncd1 {[%emt 0:01:48]} Nexg4 {
[%emt 0:04:06]} 22. Rb1 {[%emt 0:02:47]} Ne5 {[%emt 0:08:06]} 23. Ne3 {[%emt 0:
00:00]} a5 {[%emt 0:05:48]} 24. h5 {[%emt 0:03:14]} a4 {[%emt 0:04:10]} 25.
hxg6+ {[%emt 0:04:00]} fxg6 {[%emt 0:02:47]} 26. Rh1+ {[%emt 0:02:05]} Kg8 {
[%emt 0:00:00]} 27. Bf4 {[%emt 0:05:28]} axb3 {[%emt 0:01:12]} 28. axb3 {
[%emt 0:00:09]} Ra2+ {[%emt 0:00:21]} 29. Nc2 {[%emt 0:00:37]} Neg4 {[%emt 0:
00:00]} 30. Bxg4 {[%emt 0:02:29]} Bxg4 {[%emt 0:00:20]} 31. Kc1 {[%emt 0:12:34]
} Bh5 {[%emt 0:02:56]} 32. Re1 {[%emt 0:03:21]} Nd7 {[%emt 0:02:39]} 33. Nd3 {
[%emt 0:00:58]} Rf8 {[%emt 0:02:57]} 34. Kb1 {[%emt 0:03:24]} Rfa8 {[%emt 0:00:
00]} 35. e5 {[%emt 0:03:11]} Nxe5 {[%emt 0:01:01]} 36. Nxe5 {[%emt 0:00:25]}
dxe5 {[%emt 0:00:05]} 37. Bxe5 {[%emt 0:00:42]} Bxe5 {[%emt 0:00:30]} 38. Rxe5
{[%emt 0:00:11]} Bd1 {[%emt 0:00:15]} 39. Rxg6+ {[%emt 0:00:57]} Kf7 {[%emt 0:
00:00]} 40. Rg2 {[%emt 0:00:33]} Bxc2+ {[%emt 0:00:13]} 41. Kc1 {[%emt 0:00:51]
} Bxb3 {[%emt 0:01:32]} 42. Rf5+ {[%emt 0:01:53]} Ke8 {[%emt 0:00:07]} 43. Rg7
{[%emt 0:00:57]} Rc2+ {[%emt 0:00:10]} 44. Kb1 {[%emt 0:00:05]} Rca2 {[%emt 0:
00:00]} 45. Re5 {[%emt 0:01:12]} R8a7 {[%emt 0:03:44]} 46. d6 {[%emt 0:00:37]}
Bxc4 {[%emt 0:01:03]} 47. Rexe7+ {[%emt 0:02:50]} Rxe7 {[%emt 0:00:20]} 48.
Rxe7+ {[%emt 0:00:04]} Kd8 {[%emt 0:00:18]} 49. Rc7 {[%emt 0:00:35]} b3 {
[%emt 0:01:15]} 50. Rb7 {[%emt 0:00:28]} Bd3+ {[%emt 0:00:25]} 51. Kc1 {
[%emt 0:00:04]} c4 {[%emt 0:00:08]} 52. d7 {[%emt 0:00:30]} c3 {[%emt 0:00:34]}
0-1

[Event "44th Chess Olympiad Women 2022"]
[Site "Chennai"]
[Date "2022.08.06"]
[Round "8.30"]
[White "Palacios, Celina"]
[Black "Ni Mhuireagain, Eibhia"]
[Result "1-0"]
[WhiteElo "1715"]
[BlackElo "1638"]
[Annotator "NA RC"]
[PlyCount "91"]
[EventDate "2022.??.??"]
[TimeControl "60"]

1. e4 {[%emt 0:01:08]} c6 {[%emt 0:00:07]} 2. d4 {[%emt 0:00:19]} d5 {[%emt 0:
00:00]} 3. exd5 {[%emt 0:00:16]} cxd5 {[%emt 0:00:06]} 4. Bd3 {[%emt 0:00:42]}
Nc6 {[%emt 0:00:20]} 5. c3 {[%emt 0:00:26]} Nf6 {[%emt 0:00:34]} 6. Bf4 {
[%emt 0:01:09]} Bg4 {[%emt 0:01:47]} 7. Qb3 {[%emt 0:01:19]} Qd7 {[%emt 0:00:
00]} 8. Nd2 {[%emt 0:03:50]} e6 {[%emt 0:00:27]} 9. Ngf3 {[%emt 0:00:44]} Bxf3
{[%emt 0:03:15]} 10. Nxf3 {[%emt 0:05:24]} Bd6 {[%emt 0:02:45]} 11. Ne5 {
[%emt 0:04:20]} Qc7 {[%emt 0:02:40]} 12. O-O {[%emt 0:12:11]} O-O {[%emt 0:00:
00]} 13. Rae1 {[%emt 0:04:17]} Rfc8 {[%emt 0:07:21]} 14. Qd1 {[%emt 0:03:52]}
Rab8 {[%emt 0:12:10]} 15. g4 {[%emt 0:08:55]} h6 {[%emt 0:21:44]} 16. h4 {
[%emt 0:06:56]} Bxe5 {[%emt 0:06:49]} 17. dxe5 {[%emt 0:04:17]} Kf8 {[%emt 0:
00:00]} 18. Qf3 {[%emt 0:08:52]} Nd7 {[%emt 0:02:16]} 19. Qe3 {[%emt 0:01:55]}
Qb6 {[%emt 0:02:32]} 20. Qd2 {[%emt 0:04:30]} d4 {[%emt 0:01:56]} 21. g5 {
[%emt 0:01:35]} hxg5 {[%emt 0:00:40]} 22. hxg5 {[%emt 0:00:31]} Nc5 {[%emt 0:
00:00]} 23. Bb1 {[%emt 0:04:44]} dxc3 {[%emt 0:00:58]} 24. Qxc3 {[%emt 0:01:33]
} Qb4 {[%emt 0:00:35]} 25. Qe3 {[%emt 0:03:34]} Qd4 {[%emt 0:02:32]} 26. g6 {
[%emt 0:03:25]} Qxe3 {[%emt 0:00:45]} 27. Rxe3 {[%emt 0:00:28]} Nd4 {[%emt 0:
00:00]} 28. gxf7 {[%emt 0:01:47]} Kxf7 {[%emt 0:00:13]} 29. Kg2 {[%emt 0:01:16]
} Rd8 {[%emt 0:01:09]} 30. Bg5 {[%emt 0:02:12]} Rd7 {[%emt 0:00:14]} 31. Rc1 {
[%emt 0:00:15]} b6 {[%emt 0:00:27]} 32. b4 {[%emt 0:00:36]} Na6 {[%emt 0:01:11]
} 33. a3 {[%emt 0:00:15]} Rbb7 {[%emt 0:00:47]} 34. Re4 {[%emt 0:01:23]} Rbc7 {
[%emt 0:04:04]} 35. Rf4+ {[%emt 0:01:34]} Kg8 {[%emt 0:00:14]} 36. Rh1 {
[%emt 0:00:53]} Nc2 {[%emt 0:02:07]} 37. Ba2 {[%emt 0:01:26]} Ne3+ {[%emt 0:00:
00]} 38. Kf3 {[%emt 0:02:45]} Nd5 {[%emt 0:00:21]} 39. Rfh4 {[%emt 0:01:13]}
Rf7+ {[%emt 0:03:07]} 40. Kg2 {[%emt 0:00:45]} Rf5 {[%emt 0:00:38]} 41. Bd2 {
[%emt 0:32:05]} Rxe5 {[%emt 0:07:26]} 42. Bb1 {[%emt 0:00:00]} Re2 {[%emt 0:00:
00]} 43. Bg6 {[%emt 0:00:00]} Kf8 {[%emt 0:02:16]} 44. Bg5 {[%emt 0:00:00]} Nf6
{[%emt 0:01:03]} 45. Rh8+ {[%emt 0:00:00]} Ke7 {[%emt 0:00:37]} 46. Rd1 {
[%emt 0:00:00]} 1-0